fUSD/lending_fUSD_20250616
["ID","MTS","AMOUNT","RATE_DAILY","PERIOD"]
[366142944,1750085445087,-490.0,0.00016438,2]
[366142945,1750085445098,-723.83,0.00016438,2]
[366142946,1750085445108,-254.46028321,0.00016438,2]
[366142947,1750085445118,-1762.64,0.00016438,2]
[366142948,1750085445128,-2019.85,0.00016438,2]
[366142949,1750085445138,-490.0,0.00016438,2]
[366142950,1750085445147,-310.37793,0.00016438,2]
[366142951,1750085445157,-490.0,0.00016438,2]
[366142952,1750085445167,-600.93,0.00016438,2]
[366142953,1750085445177,-490.0,0.00016438,2]
[366142954,1750085445187,-2547.01,0.00016438,2]
[366142955,1750085445198,-1445.19,0.00016438,2]
[366142956,1750085445208,-3570.53,0.00016438,2]
[366142958,1750085445218,-490.0,0.00016438,2]
[366142959,1750085445228,-310.37793,0.00016438,2]
[366142960,1750085445237,-1524.47,0.00016438,2]
[366142961,1750085445248,-930.94,0.00016438,2]
[366142962,1750085445258,-1280.44,0.00016438,2]
[366142963,1750085445268,-630.04,0.00016438,2]
[366142964,1750085445278,-490.0,0.00016438,2]
[366142965,1750085445289,-583.66,0.00016438,2]
[366142966,1750085445299,-1589.9,0.00016438,2]
[366142967,1750085445309,-490.0,0.00016438,2]
[366142968,1750085445319,-490.0,0.00016438,2]
[366142969,1750085445329,-823.81,0.00016438,2]
[366142970,1750085445340,-1066.27,0.00016438,2]
[366142971,1750085445351,-1038.97,0.00016438,2]
[366142972,1750085445360,-151.0,0.00016438,2]
[366142973,1750085445370,-490.0,0.00016438,2]
[366142974,1750085445380,-490.0,0.00016438,2]
[366142975,1750085445391,-490.0,0.00016438,2]
[366142976,1750085445400,-1290.54,0.00016438,2]
[366142977,1750085445411,-226.046328,0.00016438,2]
[366142978,1750085445421,-1005.98,0.00016438,2]
[366142979,1750085445431,-769.59,0.00016438,2]
[366142980,1750085445441,-490.0,0.00016438,2]
[366142981,1750085445451,-500.0,0.00016438,2]
[366142982,1750085445460,-3151.35,0.00016438,2]
[366142983,1750085445470,-334.09454167,0.00016438,2]
[366142984,1750085445480,-841.66,0.00016438,2]
[366142985,1750085445490,-4229.39,0.00016438,2]
[366142986,1750085445500,-226.046328,0.00016438,2]
[366142987,1750085445510,-708.86,0.00016438,2]
[366142988,1750085445519,-433.40640208,0.00016438,2]
[366142989,1750085445529,-500.0,0.00016438,2]
[366142990,1750085445540,-162.38555296,0.00016438,2]
[366142991,1750085445549,-500.0,0.00016438,2]
[366142992,1750085445561,-500.0,0.00016438,2]
[366142993,1750085445574,-306.02857574,0.00016438,2]
[366142994,1750085445584,-1313.79,0.00016438,2]
[366142995,1750085445594,-490.0,0.00016438,2]
[366142996,1750085445604,-8149.91,0.00016438,2]
[366142997,1750085445614,-490.0,0.00016438,2]
[366142998,1750085445624,-3405.41,0.00016438,2]
[366142999,1750085445634,-912.84,0.00016438,2]
[366143000,1750085445644,-209.598752,0.00016438,2]
[366143001,1750085445654,-1514.75,0.00016438,2]
[366143002,1750085445664,-1474.72,0.00016438,2]
[366143003,1750085445674,-1602.71,0.00016438,2]
[366143004,1750085445684,-876.89,0.00016438,2]
[366143005,1750085445695,-6681.76,0.00016438,2]
[366143006,1750085445705,-209.598752,0.00016438,2]
[366143007,1750085445715,-1013.19,0.00016438,2]
[366143008,1750085445726,-1810.73,0.00016438,2]
[366143009,1750085445736,-1886.46,0.00016438,2]
[366143010,1750085445746,-490.0,0.00016438,2]
[366143011,1750085445756,-490.0,0.00016438,2]
[366143012,1750085445766,-935.1,0.00016438,2]
[366143013,1750085445777,-151.0,0.00016438,2]
[366143015,1750085445787,-631.76,0.00016438,2]
[366143016,1750085445799,-756.97,0.00016438,2]
[366143017,1750085445809,-1625.69,0.00016438,2]
[366143018,1750085445819,-512.381056,0.00016438,2]
[366143019,1750085445828,-490.0,0.00016438,2]
[366143020,1750085445838,-1300.62,0.00016438,2]
[366143021,1750085445847,-765.57,0.00016438,2]
[366143022,1750085445857,-512.381056,0.00016438,2]
[366143023,1750085445867,-151.0,0.00016438,2]
[366143024,1750085445877,-1186.24,0.00016438,2]
[366143025,1750085445888,-490.0,0.00016438,2]
[366143026,1750085445898,-695.33,0.00016438,2]
[366143027,1750085445908,-490.0,0.00016438,2]
[366143029,1750085445918,-1439.81,0.00016438,2]
[366143030,1750085445928,-490.0,0.00016438,2]
[366143031,1750085445938,-909.82,0.00016438,2]
[366143032,1750085445948,-490.0,0.00016438,2]
[366143033,1750085445958,-950.07,0.00016438,2]
[366143034,1750085445968,-813.45,0.00016438,2]
[366143035,1750085445978,-7133.88,0.00016438,2]
[366143036,1750085445988,-4587.22,0.00016438,2]
[366143037,1750085445997,-703.49,0.00016438,2]
[366143038,1750085446007,-7951.1804909,0.00016438,2]
[366143039,1750085446017,-490.0,0.00016438,2]
[366143040,1750085446027,-490.0,0.00016438,2]
[366143041,1750085446037,-490.0,0.00016438,2]
[366143042,1750085446046,-490.0,0.00016438,2]
[366143043,1750085446056,-1514.52,0.00016438,2]
[366143044,1750085446066,-490.0,0.00016438,2]
[366143045,1750085446076,-694.67,0.00016438,2]
[366143046,1750085446086,-151.0,0.00016438,2]
[366143047,1750085446096,-490.0,0.00016438,2]
[366143048,1750085446106,-2247.68,0.00016438,2]
[366143049,1750085446116,-613.03,0.00016438,2]
[366143050,1750085446126,-907.22,0.00016438,2]
[366143051,1750085446136,-151.0,0.00016438,2]
[366143052,1750085446146,-7372.53,0.00016438,2]
[366143053,1750085446156,-490.0,0.00016438,2]
[366143054,1750085446167,-490.0,0.00016438,2]
[366143055,1750085446178,-820.22,0.00016438,2]
[366143056,1750085446188,-490.0,0.00016438,2]
[366143057,1750085446199,-631.74,0.00016438,2]
[366143058,1750085446209,-1710.13,0.00016438,2]
[366143059,1750085446219,-2785.2,0.00016438,2]
[366143060,1750085446229,-994.97,0.00016438,2]
[366143061,1750085446240,-151.0,0.00016438,2]
[366143062,1750085446251,-2347.08,0.00016438,2]
[366143063,1750085446261,-490.0,0.00016438,2]
[366143064,1750085446271,-538.0,0.00016438,2]
[366143065,1750085446461,-639.19,0.00016438,2]
[366143066,1750085446478,-5169.92,0.00016438,2]
[366143067,1750085446488,-151.0,0.00016438,2]
[366143068,1750085446498,-490.0,0.00016438,2]
[366143069,1750085446508,-4074.71,0.00016438,2]
[366143070,1750085446517,-753.23,0.00016438,2]
[366143071,1750085446528,-2661.97,0.00016438,2]
[366143072,1750085446540,-2048.72,0.00016438,2]
[366143073,1750085446550,-16568.9,0.00016438,2]
[366143074,1750085446560,-490.0,0.00016438,2]
[366143075,1750085446574,-671.6,0.00016438,2]
[366143076,1750085446584,-490.0,0.00016438,2]
[366143077,1750085446594,-990.72,0.00016438,2]
[366143078,1750085446605,-1012.76,0.00016438,2]
[366143079,1750085446615,-490.0,0.00016438,2]
[366143080,1750085446626,-892.07,0.00016438,2]
[366143081,1750085446636,-798.34,0.00016438,2]
[366143082,1750085446646,-1576.84,0.00016438,2]
[366143083,1750085446657,-490.0,0.00016438,2]
[366143084,1750085446668,-534.96,0.00016438,2]
[366143085,1750085446678,-810.56,0.00016438,2]
[366143086,1750085446688,-614.55,0.00016438,2]
[366143087,1750085446701,-2263.25,0.00016438,2]
[366143088,1750085446711,-931.84,0.00016438,2]
[366143089,1750085446721,-968.72,0.00016438,2]
[366143090,1750085446730,-1182.7,0.00016438,2]
[366143091,1750085446740,-1182.7,0.00016438,2]
[366143092,1750085446750,-1182.7,0.00016438,2]
[366143093,1750085446761,-536.29,0.00016438,2]
[366143094,1750085446771,-1577.24,0.00016438,2]
[366143095,1750085446781,-733.4,0.00016438,2]
[366143096,1750085446791,-955.98,0.00016438,2]
[366143097,1750085446801,-490.0,0.00016438,2]
[366143098,1750085446810,-817.73,0.00016438,2]
[366143099,1750085446820,-785.68,0.00016438,2]
[366143100,1750085446830,-2376.14,0.00016438,2]
[366143101,1750085446840,-3333.54,0.00016438,2]
[366143102,1750085446849,-1581.21,0.00016438,2]
[366143103,1750085446859,-925.89,0.00016438,2]
[366143104,1750085446869,-490.0,0.00016438,2]
[366143105,1750085446878,-490.0,0.00016438,2]
[366143106,1750085446888,-1198.0,0.00016438,2]
[366143107,1750085446897,-490.0,0.00016438,2]
[366143108,1750085446908,-602.82,0.00016438,2]
[366143109,1750085446917,-778.82,0.00016438,2]
[366143110,1750085446927,-719.15,0.00016438,2]
[366143111,1750085446937,-972.31,0.00016438,2]
[366143112,1750085446947,-490.0,0.00016438,2]
[366143113,1750085446956,-667.25,0.00016438,2]
[366143114,1750085446966,-1050.65,0.00016438,2]
[366143115,1750085446976,-689.33,0.00016438,2]
[366143116,1750085446986,-16618.58,0.00016438,2]
[366143117,1750085446995,-172.0,0.00016438,2]
[366143118,1750085447005,-16045.49,0.00016438,2]
[366143119,1750085447015,-151.0,0.00016438,2]
[366143120,1750085447025,-885.28,0.00016438,2]
[366143121,1750085447035,-531.5,0.00016438,2]
[366143122,1750085447046,-796.52,0.00016438,2]
[366143123,1750085447058,-1454.53,0.00016438,2]
[366143124,1750085447068,-689.29,0.00016438,2]
[366143125,1750085447079,-1036.89,0.00016438,2]
[366143126,1750085447088,-490.0,0.00016438,2]
[366143127,1750085447098,-6956.13,0.00016438,2]
[366143128,1750085447108,-1146.32,0.00016438,2]
[366143129,1750085447118,-2878.73,0.00016438,2]
[366143130,1750085447128,-9594.9251761,0.00016439,2]
[366143131,1750085447138,-46905.0833333,0.00016439,2]
[366143132,1750085447147,-5594.8564973,0.00016439,2]
[366143133,1750085447158,-151.0,0.00016439,2]
[366143134,1750085447168,-2246.13364994,0.00016446,2]
[366143135,1750085447178,-157.60514064,0.00016447,2]
[366143136,1750085447188,-1000.0,0.00016449,2]
[366143137,1750085447201,-223.322793,0.00016456,2]
[366143138,1750085447210,-223.322793,0.00016456,2]
[366143139,1750085447220,-309.380826,0.00016456,2]
[366143140,1750085447230,-309.380826,0.00016456,2]
[366143141,1750085447240,-544.379265,0.00016456,2]
[366143142,1750085447249,-544.379265,0.00016456,2]
[366143143,1750085447259,-151.0,0.00016456,2]
[366143144,1750085447269,-4246.28587664,0.0001646,2]
[366143145,1750085447278,-151.0,0.0001646,2]
[366143146,1750085447289,-150.0,0.0001647,2]
[366143147,1750085447299,-522.81888161,0.00016473,2]
[366143148,1750085447309,-502.47503947,0.00016473,2]
[366143149,1750085447319,-500.0,0.00016473,2]
[366143150,1750085447330,-500.0,0.00016473,2]
[366143151,1750085447339,-500.0,0.00016473,2]
[366143152,1750085447349,-500.0,0.00016473,2]
[366143153,1750085447359,-372.48942682,0.00016473,2]
[366143154,1750085447368,-470.58509326,0.00016473,2]
[366143155,1750085447378,-500.0,0.00016473,2]
[366143156,1750085447388,-528.0,0.00016477,2]
[366143157,1750085447398,-150.0,0.00016477,2]
[366143158,1750085447407,-400.0,0.00016479,2]
[366143159,1750085447417,-150.0,0.00016488,2]
[366143160,1750085447427,-329.83272598,0.00016491,2]
[366143161,1750085447437,-335.22643386,0.00016492,2]
[366143162,1750085447447,-150.0,0.00016496,2]
[366143163,1750085447457,-1182.7,0.00016499,2]
[366143164,1750085447467,-151.0,0.000165,2]
[366143165,1750085447476,-151.0,0.000165,2]
[366143166,1750085447486,-182.626834,0.000165,2]
[366143167,1750085447497,-182.626834,0.000165,2]
[366143168,1750085447507,-558.970878,0.000165,2]
[366143169,1750085447517,-558.970878,0.000165,2]
[366143170,1750085447527,-66867.731658,0.000165,2]
[366143171,1750085447537,-151.0,0.000165,2]
[366143172,1750085447548,-151.0,0.000165,2]
[366143173,1750085447559,-151.0,0.000165,2]
[366143174,1750085447572,-151.0,0.000165,2]
[366143175,1750085447582,-151.853439,0.000165,2]
[366143176,1750085447592,-151.0,0.000165,2]
[366143177,1750085447603,-282.938286,0.000165,2]
[366143178,1750085447614,-282.938286,0.000165,2]
[366143179,1750085447624,-151.0,0.000165,2]
[366143180,1750085447635,-151.0,0.000165,2]
[366143181,1750085447645,-230.081965,0.000165,2]
[366143182,1750085447655,-230.081965,0.000165,2]
[366143183,1750085447665,-175.574596,0.000165,2]
[366143184,1750085447675,-175.574596,0.000165,2]
[366143185,1750085447685,-151.0,0.000165,2]
[366143186,1750085447696,-157.970042,0.000165,2]
[366143187,1750085447706,-157.970042,0.000165,2]
[366143188,1750085447716,-151.0,0.000165,2]
[366143189,1750085447726,-206.16691252,0.000165,2]
[366143190,1750085447737,-347.2116,0.000165,2]
[366143191,1750085447747,-347.2116,0.000165,2]
[366143192,1750085447758,-151.0,0.00016502,2]
[366143193,1750085447768,-151.0,0.00016502,2]
[366143194,1750085447779,-151.0,0.00016502,2]
[366143195,1750085447790,-2246.13364994,0.0001651,2]
[366143196,1750085447800,-833.8156298,0.00016515,2]
[366143197,1750085447811,-151.0,0.00016519,2]
[366143198,1750085447820,-151.0,0.00016519,2]
[366143199,1750085447830,-814.142819,0.00016519,2]
[366143200,1750085447840,-151.0,0.00016519,2]
[366143201,1750085447851,-4246.28587664,0.00016523,2]
[366143202,1750085447861,-150.0,0.00016525,2]
[366143203,1750085447871,-152.83855811,0.00016534,2]
[366143204,1750085447881,-1000.0,0.00016535,2]
[366143205,1750085447893,-150.0,0.00016536,2]
[366143206,1750085447903,-1000.0,0.00016539,2]
[366143207,1750085447913,-151.0,0.00016545,2]
[366143208,1750085447923,-2000.0,0.00016545,2]
[366143209,1750085447934,-153.081709,0.00016551,2]
[366143210,1750085447943,-1000.0,0.00016552,2]
[366143211,1750085447954,-150.0,0.00016553,2]
[366143212,1750085447963,-150.0,0.00016558,2]
[366143213,1750085447974,-150.0,0.00016558,2]
[366143214,1750085447984,-182.528,0.00016558,2]
[366143215,1750085447994,-335.22643381,0.0001656,2]
[366143216,1750085448004,-157.60514064,0.0001656,2]
[366143217,1750085448014,-1993.414,0.00016565,2]
[366143218,1750085448025,-150.0,0.00016573,2]
[366143219,1750085448036,-2000.0,0.00016574,2]
[366143220,1750085448047,-500.0,0.00016574,2]
[366143221,1750085448057,-200.0,0.00016574,2]
[366143222,1750085448067,-150.0,0.00016575,2]
[366143223,1750085448077,-2246.13364994,0.00016575,2]
[366143224,1750085448088,-1000.0,0.00016579,2]
[366143225,1750085448099,-4246.28587664,0.00016586,2]
[366143226,1750085448109,-329.83272598,0.00016593,2]
[366143227,1750085448119,-2854.98,0.000166,2]
[366143228,1750085448130,-1310.77759696,0.00016601,5]
[366143229,1750085448140,-170.196452,0.00016601,2]
[366143230,1750085448151,-256.534013,0.00016601,2]
[366143231,1750085448162,-151.0,0.00016601,2]
[366143232,1750085448171,-151.0,0.00016601,2]
[366143233,1750085448182,-151.0,0.00016601,2]
[366143234,1750085448192,-209.598752,0.00016601,2]
[366143235,1750085448202,-209.598752,0.00016601,2]
[366143236,1750085448213,-153.068112,0.00016601,2]
[366143237,1750085448223,-151.0,0.00016601,2]
[366143238,1750085448233,-151.0,0.00016601,2]
[366143239,1750085448244,-151.0,0.00016601,2]
[366143240,1750085448254,-1182.7,0.00016601,2]
[366143241,1750085448265,-1182.7,0.00016601,2]
[366143242,1750085448276,-151.0,0.00016602,2]
[366143243,1750085448286,-151.0,0.00016602,2]
[366143244,1750085448298,-151.0,0.00016602,2]
[366143245,1750085448308,-151.0,0.00016602,2]
[366143246,1750085448318,-151.0,0.00016602,2]
[366143247,1750085448328,-151.0,0.00016602,2]
[366143248,1750085448338,-182.626834,0.00016602,2]
[366143249,1750085448348,-182.626834,0.00016602,2]
[366143250,1750085448358,-182.626834,0.00016602,2]
[366143251,1750085448368,-182.626834,0.00016602,2]
[366143252,1750085448379,-558.970878,0.00016602,2]
[366143253,1750085448389,-558.970878,0.00016602,2]
[366143254,1750085448399,-558.970878,0.00016602,2]
[366143255,1750085448409,-558.970878,0.00016602,2]
[366143256,1750085448419,-795.198936,0.00016602,2]
[366143257,1750085448429,-705.30113,0.00016602,2]
[366143258,1750085448439,-200.366126,0.00016602,2]
[366143259,1750085448449,-200.366126,0.00016602,2]
[366143260,1750085448459,-151.0,0.00016602,2]
[366143261,1750085448469,-199.199109,0.00016602,2]
[366143262,1750085448479,-199.199109,0.00016602,2]
[366143263,1750085448489,-195.571874,0.00016602,2]
[366143264,1750085448499,-199.199109,0.00016602,2]
[366143265,1750085448509,-199.199109,0.00016602,2]
[366143266,1750085448519,-151.0,0.00016602,2]
[366143267,1750085448528,-151.0,0.00016602,2]
[366143268,1750085448538,-151.0,0.00016602,2]
[366143269,1750085448549,-151.0,0.00016602,2]
[366143270,1750085448559,-151.0,0.00016602,2]
[366143271,1750085448574,-151.0,0.00016602,2]
[366143272,1750085448583,-216.945624,0.00016602,2]
[366143273,1750085448594,-490.0,0.00016602,2]
[366143274,1750085448603,-151.0,0.00016602,2]
[366143275,1750085448614,-151.0,0.00016602,2]
[366143276,1750085448624,-490.0,0.00016602,2]
[366143277,1750085448634,-151.0,0.00016602,2]
[366143278,1750085448645,-151.0,0.00016602,2]
[366143279,1750085448655,-163.571566,0.00016602,2]
[366143280,1750085448665,-163.571566,0.00016602,2]
[366143281,1750085448675,-163.571566,0.00016602,2]
[366143282,1750085448684,-163.571566,0.00016602,2]
[366143283,1750085448694,-490.0,0.00016602,2]
[366143284,1750085448704,-490.0,0.00016602,2]
[366143285,1750085448714,-151.0,0.00016602,2]
[366143286,1750085448724,-490.0,0.00016602,2]
[366143287,1750085448735,-240.955094,0.00016602,2]
[366143288,1750085448744,-151.0,0.00016602,2]
[366143289,1750085448754,-151.0,0.00016602,2]
[366143290,1750085448763,-490.0,0.00016602,2]
[366143291,1750085448773,-490.0,0.00016602,2]
[366143292,1750085448782,-151.0,0.00016602,2]
[366143293,1750085449121,-151.0,0.00016602,2]
[366143294,1750085449137,-490.0,0.00016602,2]
[366143295,1750085449148,-490.0,0.00016602,2]
[366143296,1750085449158,-490.0,0.00016602,2]
[366143297,1750085449169,-490.0,0.00016602,2]
[366143298,1750085449179,-490.0,0.00016602,2]
[366143299,1750085449189,-490.0,0.00016602,2]
[366143300,1750085449199,-490.0,0.00016602,2]
[366143301,1750085449209,-490.0,0.00016602,2]
[366143302,1750085449219,-151.0,0.00016602,2]
[366143303,1750085449229,-151.0,0.00016602,2]
[366143304,1750085449240,-490.0,0.00016602,2]
[366143305,1750085449250,-490.0,0.00016602,2]
[366143306,1750085449260,-490.0,0.00016602,2]
[366143307,1750085449271,-151.0,0.00016602,2]
[366143308,1750085449281,-151.0,0.00016602,2]
[366143309,1750085449292,-490.0,0.00016602,2]
[366143310,1750085449302,-490.0,0.00016602,2]
[366143311,1750085449312,-490.0,0.00016602,2]
[366143312,1750085449322,-490.0,0.00016602,2]
[366143313,1750085449333,-383.22226619,0.00016602,2]
[366143314,1750085449343,-151.0,0.00016602,2]
[366143315,1750085449353,-151.0,0.00016602,2]
[366143316,1750085449363,-151.0,0.00016602,2]
[366143317,1750085449373,-490.0,0.00016602,2]
[366143318,1750085449383,-681.81,0.00016602,2]
[366143319,1750085449393,-151.0,0.00016602,2]
[366143320,1750085449402,-490.0,0.00016602,2]
[366143321,1750085449412,-324.73425333,0.00016602,2]
[366143322,1750085449422,-490.0,0.00016602,2]
[366143323,1750085449431,-490.0,0.00016602,2]
[366143324,1750085449441,-490.0,0.00016602,2]
[366143325,1750085449451,-490.0,0.00016602,2]
[366143326,1750085449461,-151.0,0.00016602,2]
[366143327,1750085449472,-151.0,0.00016602,2]
[366143328,1750085449482,-151.0,0.00016602,2]
[366143329,1750085449493,-151.0,0.00016602,2]
[366143330,1750085449503,-151.0,0.00016602,2]
[366143331,1750085449513,-151.0,0.00016602,2]
[366143332,1750085449523,-490.0,0.00016602,2]
[366143333,1750085449532,-490.0,0.00016602,2]
[366143334,1750085449543,-490.0,0.00016602,2]
[366143335,1750085449552,-282.938286,0.00016602,2]
[366143336,1750085449564,-282.938286,0.00016602,2]
[366143337,1750085449575,-490.0,0.00016602,2]
[366143338,1750085449585,-282.938286,0.00016602,2]
[366143339,1750085449595,-282.938286,0.00016602,2]
[366143340,1750085449606,-588.0,0.00016602,2]
[366143341,1750085449619,-885.29,0.00016602,2]
[366143342,1750085449629,-151.0,0.00016602,2]
[366143343,1750085449639,-151.0,0.00016602,2]
[366143344,1750085449650,-151.0,0.00016602,2]
[366143345,1750085449660,-153.362934,0.00016602,2]
[366143346,1750085449670,-490.0,0.00016602,2]
[366143347,1750085449680,-490.0,0.00016602,2]
[366143348,1750085449691,-597.41,0.00016602,2]
[366143349,1750085449700,-223.322793,0.00016602,2]
[366143350,1750085449710,-223.322793,0.00016602,2]
[366143351,1750085449720,-223.322793,0.00016602,2]
[366143352,1750085449730,-490.0,0.00016602,2]
[366143353,1750085449740,-554.43,0.00016602,2]
[366143354,1750085449751,-223.322793,0.00016602,2]
[366143355,1750085449761,-223.322793,0.00016602,2]
[366143356,1750085449772,-223.322793,0.00016602,2]
[366143357,1750085449782,-490.0,0.00016602,2]
[366143358,1750085449792,-490.0,0.00016602,2]
[366143359,1750085449804,-490.0,0.00016602,2]
[366143360,1750085449814,-490.0,0.00016602,2]
[366143361,1750085449824,-490.0,0.00016602,2]
[366143362,1750085449834,-584.62,0.00016602,2]
[366143363,1750085449845,-490.0,0.00016602,2]
[366143364,1750085449855,-852.27,0.00016602,2]
[366143365,1750085449865,-151.0,0.00016602,2]
[366143366,1750085449875,-151.0,0.00016602,2]
[366143367,1750085449886,-490.0,0.00016602,2]
[366143368,1750085449897,-490.0,0.00016602,2]
[366143369,1750085449907,-762.86,0.00016602,2]
[366143370,1750085449916,-567.14,0.00016602,2]
[366143371,1750085449926,-490.0,0.00016602,2]
[366143372,1750085449935,-490.0,0.00016602,2]
[366143373,1750085449945,-490.0,0.00016602,2]
[366143374,1750085449955,-718.34,0.00016602,2]
[366143375,1750085449965,-308.547349,0.00016602,2]
[366143376,1750085449975,-308.547349,0.00016602,2]
[366143377,1750085449984,-308.547349,0.00016602,2]
[366143378,1750085449994,-490.0,0.00016602,2]
[366143379,1750085450004,-490.0,0.00016602,2]
[366143380,1750085450014,-377.68775045,0.00016602,2]
[366143381,1750085450024,-308.547349,0.00016602,2]
[366143382,1750085450036,-308.547349,0.00016602,2]
[366143383,1750085450047,-308.547349,0.00016602,2]
[366143384,1750085450057,-490.0,0.00016602,2]
[366143385,1750085450067,-490.0,0.00016602,2]
[366143386,1750085450078,-490.0,0.00016602,2]
[366143387,1750085450088,-833.26,0.00016602,2]
[366143388,1750085450098,-490.0,0.00016602,2]
[366143389,1750085450108,-781.88,0.00016602,2]
[366143390,1750085450119,-1360.97,0.00016602,2]
[366143391,1750085450129,-490.0,0.00016602,2]
[366143392,1750085450139,-490.0,0.00016602,2]
[366143393,1750085450148,-784.83,0.00016602,2]
[366143394,1750085450158,-660.95,0.00016602,2]
[366143395,1750085450170,-490.0,0.00016602,2]
[366143396,1750085450180,-490.0,0.00016602,2]
[366143397,1750085450190,-543.67,0.00016602,2]
[366143398,1750085450200,-975.13,0.00016602,2]
[366143399,1750085450211,-490.0,0.00016602,2]
[366143400,1750085450221,-1377.02,0.00016602,2]
[366143401,1750085450231,-748.44,0.00016602,2]
[366143402,1750085450242,-814.142819,0.00016602,2]
[366143403,1750085450253,-814.142819,0.00016602,2]
[366143404,1750085450263,-490.0,0.00016602,2]
[366143405,1750085450273,-309.380826,0.00016602,2]
[366143406,1750085450283,-309.380826,0.00016602,2]
[366143407,1750085450296,-309.380826,0.00016602,2]
[366143408,1750085450307,-490.0,0.00016602,2]
[366143409,1750085450317,-309.380826,0.00016602,2]
[366143410,1750085450328,-309.380826,0.00016602,2]
[366143411,1750085450338,-490.0,0.00016602,2]
[366143412,1750085450348,-309.380826,0.00016602,2]
[366143413,1750085450357,-490.0,0.00016602,2]
[366143414,1750085450367,-490.0,0.00016602,2]
[366143415,1750085450377,-746.95,0.00016602,2]
[366143416,1750085450387,-490.0,0.00016602,2]
[366143417,1750085450397,-677.24,0.00016602,2]
[366143418,1750085450407,-490.0,0.00016602,2]
[366143419,1750085450417,-566.79373436,0.00016602,2]
[366143420,1750085450427,-490.0,0.00016602,2]
[366143421,1750085450437,-490.0,0.00016602,2]
[366143422,1750085450446,-490.0,0.00016602,2]
[366143423,1750085450456,-490.0,0.00016602,2]
[366143424,1750085450466,-490.0,0.00016602,2]
[366143425,1750085450475,-490.0,0.00016602,2]
[366143426,1750085450485,-151.0,0.00016602,2]
[366143427,1750085450494,-151.0,0.00016602,2]
[366143428,1750085450504,-151.0,0.00016602,2]
[366143429,1750085450514,-490.0,0.00016602,2]
[366143430,1750085450524,-490.0,0.00016602,2]
[366143431,1750085450534,-151.0,0.00016602,2]
[366143432,1750085450545,-490.0,0.00016602,2]
[366143433,1750085450555,-151.0,0.00016602,2]
[366143434,1750085450568,-490.0,0.00016602,2]
[366143435,1750085450578,-490.0,0.00016602,2]
[366143436,1750085450588,-623.63,0.00016602,2]
[366143437,1750085450598,-490.0,0.00016602,2]
[366143438,1750085450610,-490.0,0.00016602,2]
[366143439,1750085450620,-1233.02,0.00016602,2]
[366143440,1750085450630,-490.0,0.00016602,2]
[366143441,1750085450639,-826.57,0.00016602,2]
[366143442,1750085450651,-816.23,0.00016602,2]
[366143443,1750085450661,-490.0,0.00016602,2]
[366143444,1750085450671,-1047.89,0.00016602,2]
[366143445,1750085450682,-490.0,0.00016602,2]
[366143446,1750085450692,-490.0,0.00016602,2]